[Event "January 9 Early 2024"]
[Site "https://www.chess.com"]
[Date "2024.01.11"]
[Round "10"]
[White "Sierra Vallina, Lionel"]
[Black "Martinez Pla, Xavier"]
[Result "1-0"]
[Board "36"]
[TimeControl "180+1"]
[WhiteFideId "54559774"]
[BlackFideId "32074271"]
[WhiteElo "2630"]
[BlackElo "2468"]
[WhiteTeam "ESP"]
[BlackTeam "ESP"]
[WhiteClock "0:01:48"]
[BlackClock "0:00:03"]

1. e4 {[%clk 0:03:00]}  c5 {[%clk 0:02:59]} 2. Nf3 {[%clk 0:03:00]}  a6 {[%clk 0:02:59]} 3. g3 {[%clk 0:02:59]}  d6 {[%clk 0:02:56]} 4. Bg2 {[%clk 0:02:58]}  Nc6 {[%clk 0:02:57]} 5. O-O {[%clk 0:02:59]}  e5 {[%clk 0:02:57]} 6. c3 {[%clk 0:02:59]}  Nf6 {[%clk 0:02:49]} 7. d4 {[%clk 0:02:59]}  cxd4 {[%clk 0:02:48]} 8. cxd4 {[%clk 0:02:57]}  Bg4 {[%clk 0:02:48]} 9. d5 {[%clk 0:02:56]}  Nd4 {[%clk 0:02:47]} 10. Nc3 {[%clk 0:02:52]}  Be7 {[%clk 0:02:44]} 11. Be3 {[%clk 0:02:51]}  Nxf3+ {[%clk 0:02:35]} 12. Bxf3 {[%clk 0:02:52]}  Bh3 {[%clk 0:02:35]} 13. Bg2 {[%clk 0:02:51]}  Bxg2 {[%clk 0:02:34]} 14. Kxg2 {[%clk 0:02:52]}  b5 {[%clk 0:02:33]} 15. b4 {[%clk 0:02:51]}  O-O {[%clk 0:02:27]} 16. Qd3 {[%clk 0:02:49]}  Qd7 {[%clk 0:02:21]} 17. a4 {[%clk 0:02:49]}  Rab8 {[%clk 0:02:01]} 18. axb5 {[%clk 0:02:47]}  axb5 {[%clk 0:02:02]} 19. Ra7 {[%clk 0:02:47]}  Rb7 {[%clk 0:01:49]} 20. Rfa1 {[%clk 0:02:45]}  Rfb8 {[%clk 0:01:35]} 21. f3 {[%clk 0:02:33]}  h5 {[%clk 0:01:34]} 22. Rxb7 {[%clk 0:02:30]}  Rxb7 {[%clk 0:01:32]} 23. Ra5 {[%clk 0:02:30]}  h4 {[%clk 0:01:21]} 24. Rxb5 {[%clk 0:02:29]}  Rc7 {[%clk 0:01:20]} 25. Rb8+ {[%clk 0:02:28]}  Kh7 {[%clk 0:01:19]} 26. b5 {[%clk 0:02:26]}  h3+ {[%clk 0:01:18]} 27. Kf2 {[%clk 0:02:26]}  Ra7 {[%clk 0:01:04]} 28. b6 {[%clk 0:02:21]}  Ra3 {[%clk 0:00:51]} 29. Qc4 {[%clk 0:02:03]}  Rxc3 {[%clk 0:00:05]} 30. Qxc3 {[%clk 0:02:01]}  Qa4 {[%clk 0:00:04]} 31. b7 {[%clk 0:01:53]}  Qa2+ {[%clk 0:00:04]} 32. Qd2 {[%clk 0:01:53]}  Qb3 {[%clk 0:00:05]} 33. Ba7 {[%clk 0:01:49]}  Nxe4+ {[%clk 0:00:03]} 34. fxe4 {[%clk 0:01:48]}  Bg5 {[%clk 0:00:03]} 1-0

[Event "January 9 Early 2024"]
[Site "https://www.chess.com"]
[Date "2024.01.11"]
[Round "10"]
[White "Wojtaszek, Radoslaw"]
[Black "So, Wesley"]
[Result "0-1"]
[Board "37"]
[TimeControl "180+1"]
[WhiteFideId "1118358"]
[BlackFideId "5202213"]
[WhiteElo "2936"]
[BlackElo "3062"]
[WhiteTeam "POL"]
[BlackTeam "USA"]
[WhiteClock "0:01:05"]
[BlackClock "0:00:36"]

1. c4 {[%clk 0:03:00]}  e5 {[%clk 0:02:58]} 2. d3 {[%clk 0:03:00]}  Nf6 {[%clk 0:02:53]} 3. Nf3 {[%clk 0:03:01]}  Nc6 {[%clk 0:02:53]} 4. a3 {[%clk 0:03:01]}  g6 {[%clk 0:02:48]} 5. b4 {[%clk 0:02:59]}  Bg7 {[%clk 0:02:46]} 6. Bb2 {[%clk 0:02:59]}  d5 {[%clk 0:02:38]} 7. cxd5 {[%clk 0:02:54]}  Nxd5 {[%clk 0:02:39]} 8. Nbd2 {[%clk 0:02:50]}  O-O {[%clk 0:02:37]} 9. e3 {[%clk 0:02:48]}  Re8 {[%clk 0:02:35]} 10. Rc1 {[%clk 0:02:40]}  e4 {[%clk 0:02:26]} 11. Bxg7 {[%clk 0:02:29]}  exf3 {[%clk 0:02:27]} 12. Bb2 {[%clk 0:02:28]}  fxg2 {[%clk 0:01:45]} 13. Bxg2 {[%clk 0:02:29]}  Nf4 {[%clk 0:01:45]} 14. Be4 {[%clk 0:02:29]}  Nxd3+ {[%clk 0:01:36]} 15. Bxd3 {[%clk 0:02:28]}  Qxd3 {[%clk 0:01:37]} 16. Qf3 {[%clk 0:02:29]}  Bf5 {[%clk 0:01:31]} 17. Rc3 {[%clk 0:02:03]}  Ne5 {[%clk 0:01:24]} 18. Qxb7 {[%clk 0:01:54]}  Qd6 {[%clk 0:01:14]} 19. Nc4 {[%clk 0:01:53]}  Nxc4 {[%clk 0:01:06]} 20. Rxc4 {[%clk 0:01:54]}  Qd3 {[%clk 0:01:05]} 21. Qc6 {[%clk 0:01:40]}  Rad8 {[%clk 0:00:45]} 22. Bd4 {[%clk 0:01:23]}  Be4 {[%clk 0:00:39]} 23. Qf6 {[%clk 0:01:17]}  Rxd4 {[%clk 0:00:37]} 24. Rxd4 {[%clk 0:01:05]}  Qc3+ {[%clk 0:00:36]} 0-1

[Event "January 9 Early 2024"]
[Site "https://www.chess.com"]
[Date "2024.01.11"]
[Round "10"]
[White "Sturt, Raven"]
[Black "Shimanov, Aleksandr"]
[Result "0-1"]
[Board "41"]
[TimeControl "180+1"]
[WhiteFideId "2007304"]
[BlackFideId "4198603"]
[WhiteElo "2784"]
[BlackElo "3003"]
[WhiteTeam "USA"]
[BlackTeam "RUS"]
[WhiteClock "0:00:09"]
[BlackClock "0:01:41"]

1. f4 {[%clk 0:03:00]}  a5 {[%clk 0:02:58]} 2. Nf3 {[%clk 0:03:01]}  a4 {[%clk 0:02:58]} 3. e4 {[%clk 0:03:01]}  e6 {[%clk 0:02:58]} 4. d4 {[%clk 0:02:59]}  d5 {[%clk 0:02:58]} 5. e5 {[%clk 0:02:59]}  b6 {[%clk 0:02:49]} 6. c4 {[%clk 0:02:55]}  dxc4 {[%clk 0:02:48]} 7. Bxc4 {[%clk 0:02:54]}  Ne7 {[%clk 0:02:48]} 8. O-O {[%clk 0:02:54]}  Nd5 {[%clk 0:02:46]} 9. f5 {[%clk 0:02:51]}  exf5 {[%clk 0:02:44]} 10. Nc3 {[%clk 0:02:51]}  c6 {[%clk 0:02:43]} 11. Bg5 {[%clk 0:02:41]}  Be7 {[%clk 0:02:41]} 12. Bxe7 {[%clk 0:02:35]}  Kxe7 {[%clk 0:02:26]} 13. Qd2 {[%clk 0:02:28]}  h6 {[%clk 0:02:19]} 14. Nxd5+ {[%clk 0:02:28]}  cxd5 {[%clk 0:02:20]} 15. Qb4+ {[%clk 0:02:29]}  Ke8 {[%clk 0:02:21]} 16. Bb5+ {[%clk 0:02:28]}  Bd7 {[%clk 0:02:21]} 17. e6 {[%clk 0:02:28]}  fxe6 {[%clk 0:02:21]} 18. Rae1 {[%clk 0:02:27]}  Kf7 {[%clk 0:02:16]} 19. Ne5+ {[%clk 0:02:24]}  Kf6 {[%clk 0:02:16]} 20. Nxd7+ {[%clk 0:01:50]}  Nxd7 {[%clk 0:02:16]} 21. Qd6 {[%clk 0:01:44]}  Nf8 {[%clk 0:02:15]} 22. Rxf5+ {[%clk 0:01:27]}  Kg6 {[%clk 0:02:15]} 23. Qg3+ {[%clk 0:01:21]}  Kh7 {[%clk 0:02:15]} 24. Rf7 {[%clk 0:01:20]}  Rg8 {[%clk 0:02:14]} 25. h4 {[%clk 0:01:08]}  Kh8 {[%clk 0:02:08]} 26. Rc1 {[%clk 0:01:05]}  Rc8 {[%clk 0:02:07]} 27. Rcc7 {[%clk 0:00:48]}  Rxc7 {[%clk 0:02:07]} 28. Rxc7 {[%clk 0:00:48]}  a3 {[%clk 0:02:04]} 29. bxa3 {[%clk 0:00:47]}  Nh7 {[%clk 0:02:03]} 30. Bd7 {[%clk 0:00:40]}  Qf6 {[%clk 0:02:00]} 31. Qf2 {[%clk 0:00:38]}  Qe7 {[%clk 0:01:58]} 32. Qe3 {[%clk 0:00:25]}  Nf8 {[%clk 0:01:52]} 33. Bxe6 {[%clk 0:00:16]}  Qxc7 {[%clk 0:01:49]} 34. Bxd5 {[%clk 0:00:16]}  Qd6 {[%clk 0:01:45]} 35. Bxg8 {[%clk 0:00:16]}  Kxg8 {[%clk 0:01:46]} 36. Qb3+ {[%clk 0:00:12]}  Ne6 {[%clk 0:01:46]} 37. d5 {[%clk 0:00:12]}  Nf4 {[%clk 0:01:45]} 38. a4 {[%clk 0:00:09]}  Qxd5 {[%clk 0:01:41]} 0-1

[Event "January 9 Early 2024"]
[Site "https://www.chess.com"]
[Date "2024.01.11"]
[Round "10"]
[White "Wu, Derek"]
[Black "Wantiez, Fabrice"]
[Result "1-0"]
[Board "42"]
[TimeControl "180+1"]
[WhiteFideId "30914558"]
[BlackFideId "202274"]
[WhiteElo "2671"]
[BlackElo "2436"]
[WhiteTeam "USA"]
[BlackTeam "BEL"]
[WhiteClock "0:01:19"]
[BlackClock "0:00:21"]

1. e4 {[%clk 0:03:00]}  e5 {[%clk 0:02:58]} 2. Nc3 {[%clk 0:02:59]}  Nc6 {[%clk 0:02:58]} 3. Bc4 {[%clk 0:02:59]}  Bb4 {[%clk 0:02:56]} 4. Qg4 {[%clk 0:02:54]}  Kf8 {[%clk 0:02:48]} 5. Qf3 {[%clk 0:02:48]}  Nf6 {[%clk 0:02:45]} 6. Nge2 {[%clk 0:02:45]}  d6 {[%clk 0:02:37]} 7. h3 {[%clk 0:02:42]}  Be6 {[%clk 0:02:30]} 8. Bxe6 {[%clk 0:02:37]}  fxe6 {[%clk 0:02:31]} 9. g4 {[%clk 0:02:38]}  Ke7 {[%clk 0:02:18]} 10. g5 {[%clk 0:02:36]}  Nd7 {[%clk 0:02:16]} 11. a3 {[%clk 0:02:30]}  Bxc3 {[%clk 0:02:15]} 12. dxc3 {[%clk 0:02:29]}  Qf8 {[%clk 0:02:16]} 13. Qg3 {[%clk 0:02:27]}  Qf7 {[%clk 0:02:13]} 14. Be3 {[%clk 0:02:24]}  d5 {[%clk 0:02:00]} 15. exd5 {[%clk 0:02:22]}  exd5 {[%clk 0:02:01]} 16. O-O-O {[%clk 0:02:22]}  Raf8 {[%clk 0:01:54]} 17. Qh4 {[%clk 0:02:15]}  g6 {[%clk 0:01:52]} 18. Rd2 {[%clk 0:02:09]}  Kd8 {[%clk 0:01:43]} 19. Rhd1 {[%clk 0:02:09]}  Ne7 {[%clk 0:01:39]} 20. Qa4 {[%clk 0:02:06]}  a6 {[%clk 0:01:34]} 21. c4 {[%clk 0:01:51]}  d4 {[%clk 0:01:33]} 22. Nxd4 {[%clk 0:01:46]}  exd4 {[%clk 0:01:31]} 23. Rxd4 {[%clk 0:01:46]}  Nc6 {[%clk 0:01:28]} 24. Rxd7+ {[%clk 0:01:45]}  Qxd7 {[%clk 0:01:29]} 25. Rxd7+ {[%clk 0:01:45]}  Kxd7 {[%clk 0:01:30]} 26. b4 {[%clk 0:01:43]}  Kc8 {[%clk 0:00:52]} 27. b5 {[%clk 0:01:42]}  Nb8 {[%clk 0:00:47]} 28. Ba7 {[%clk 0:01:32]}  axb5 {[%clk 0:00:41]} 29. cxb5 {[%clk 0:01:33]}  Rf5 {[%clk 0:00:40]} 30. Be3 {[%clk 0:01:30]}  Rd8 {[%clk 0:00:25]} 31. Qc4 {[%clk 0:01:26]}  Rdd5 {[%clk 0:00:22]} 32. Qe4 {[%clk 0:01:22]}  b6 {[%clk 0:00:21]} 33. a4 {[%clk 0:01:19]}  Kb7 {[%clk 0:00:21]} 34. c4 {[%clk 0:01:19]} 1-0

[Event "January 9 Early 2024"]
[Site "https://www.chess.com"]
[Date "2024.01.11"]
[Round "10"]
[White "Mrudul Dehankar"]
[Black "Van Kooten, Luuk"]
[Result "1-0"]
[Board "45"]
[TimeControl "180+1"]
[WhiteFideId "25096990"]
[BlackFideId "1006533"]
[WhiteElo "2393"]
[BlackElo "2257"]
[WhiteTeam "IND"]
[BlackTeam "NED"]
[WhiteClock "0:01:10"]
[BlackClock "0:00:17"]

1. e4 {[%clk 0:03:00]}  c5 {[%clk 0:02:58]} 2. Nf3 {[%clk 0:03:00]}  d6 {[%clk 0:02:58]} 3. d4 {[%clk 0:03:00]}  cxd4 {[%clk 0:02:57]} 4. Nxd4 {[%clk 0:03:01]}  Nf6 {[%clk 0:02:57]} 5. Nc3 {[%clk 0:03:01]}  a6 {[%clk 0:02:56]} 6. Bg5 {[%clk 0:03:02]}  e6 {[%clk 0:02:54]} 7. f4 {[%clk 0:03:01]}  Nc6 {[%clk 0:02:52]} 8. Qd2 {[%clk 0:02:47]}  h6 {[%clk 0:02:51]} 9. Bxf6 {[%clk 0:01:56]}  Qxf6 {[%clk 0:02:52]} 10. Nf3 {[%clk 0:01:55]}  Qd8 {[%clk 0:02:47]} 11. O-O-O {[%clk 0:01:55]}  Be7 {[%clk 0:02:45]} 12. g4 {[%clk 0:01:50]}  O-O {[%clk 0:02:34]} 13. h4 {[%clk 0:01:46]}  b5 {[%clk 0:02:25]} 14. g5 {[%clk 0:01:46]}  h5 {[%clk 0:02:24]} 15. Bh3 {[%clk 0:01:40]}  g6 {[%clk 0:02:22]} 16. f5 {[%clk 0:01:37]}  b4 {[%clk 0:01:57]} 17. Ne2 {[%clk 0:01:35]}  exf5 {[%clk 0:01:55]} 18. exf5 {[%clk 0:01:27]}  Ne5 {[%clk 0:01:46]} 19. Ned4 {[%clk 0:01:22]}  Nxf3 {[%clk 0:01:31]} 20. Nxf3 {[%clk 0:01:21]}  Bb7 {[%clk 0:01:31]} 21. Rhf1 {[%clk 0:01:19]}  Re8 {[%clk 0:01:16]} 22. Nd4 {[%clk 0:01:16]}  Bf8 {[%clk 0:01:02]} 23. fxg6 {[%clk 0:01:12]}  fxg6 {[%clk 0:01:02]} 24. Be6+ {[%clk 0:01:12]}  Kh8 {[%clk 0:00:53]} 25. Qd3 {[%clk 0:01:12]}  Bg7 {[%clk 0:00:17]} 26. Qxg6 {[%clk 0:01:10]} 1-0

[Event "January 9 Early 2024"]
[Site "https://www.chess.com"]
[Date "2024.01.11"]
[Round "10"]
[White "Cieslak, Patryk"]
[Black "Bodnaruk, Anastasia"]
[Result "1-0"]
[Board "49"]
[TimeControl "180+1"]
[WhiteFideId "21078882"]
[BlackFideId "4181751"]
[WhiteElo "2697"]
[BlackElo "2552"]
[WhiteTeam "POL"]
[BlackTeam "RUS"]
[WhiteClock "0:01:02"]
[BlackClock "0:00:59"]

1. e4 {[%clk 0:03:00]}  c5 {[%clk 0:02:59]} 2. Nf3 {[%clk 0:03:00]}  d6 {[%clk 0:02:59]} 3. d4 {[%clk 0:03:01]}  cxd4 {[%clk 0:02:59]} 4. Nxd4 {[%clk 0:03:02]}  Nf6 {[%clk 0:03:00]} 5. Nc3 {[%clk 0:03:01]}  a6 {[%clk 0:03:00]} 6. Be3 {[%clk 0:03:00]}  e5 {[%clk 0:02:59]} 7. Nb3 {[%clk 0:03:01]}  Be7 {[%clk 0:02:58]} 8. h3 {[%clk 0:03:01]}  Be6 {[%clk 0:02:54]} 9. f4 {[%clk 0:03:01]}  exf4 {[%clk 0:02:52]} 10. Bxf4 {[%clk 0:03:02]}  O-O {[%clk 0:02:53]} 11. Qe2 {[%clk 0:03:01]}  Nc6 {[%clk 0:02:52]} 12. O-O-O {[%clk 0:03:01]}  Qc7 {[%clk 0:02:33]} 13. Kb1 {[%clk 0:02:58]}  Ne5 {[%clk 0:02:31]} 14. g4 {[%clk 0:02:55]}  b5 {[%clk 0:02:26]} 15. g5 {[%clk 0:02:53]}  Nfd7 {[%clk 0:02:26]} 16. Nd4 {[%clk 0:02:54]}  Nb6 {[%clk 0:02:17]} 17. Nf5 {[%clk 0:02:47]}  Bxf5 {[%clk 0:02:12]} 18. exf5 {[%clk 0:02:45]}  Rfe8 {[%clk 0:02:07]} 19. Bxe5 {[%clk 0:02:40]}  dxe5 {[%clk 0:01:59]} 20. f6 {[%clk 0:02:40]}  Bb4 {[%clk 0:01:56]} 21. Ne4 {[%clk 0:02:37]}  Red8 {[%clk 0:01:38]} 22. fxg7 {[%clk 0:02:35]}  Qc4 {[%clk 0:01:31]} 23. Rxd8+ {[%clk 0:02:08]}  Rxd8 {[%clk 0:01:29]} 24. Nf6+ {[%clk 0:02:09]}  Kxg7 {[%clk 0:01:29]} 25. Qh5 {[%clk 0:02:03]}  Qh4 {[%clk 0:00:59]} 26. Bd3 {[%clk 0:01:02]} 1-0

[Event "January 9 Early 2024"]
[Site "https://www.chess.com"]
[Date "2024.01.11"]
[Round "10"]
[White "Begunov, Konstantin"]
[Black "Rodriguez Santiago, Jaime"]
[Result "0-1"]
[Board "57"]
[TimeControl "180+1"]
[WhiteFideId "4118510"]
[BlackFideId "3100898"]
[WhiteElo "2463"]
[BlackElo "2314"]
[WhiteTeam "RUS"]
[BlackTeam "PUR"]
[WhiteClock "0:00:02"]
[BlackClock "0:01:11"]

1. d4 {[%clk 0:03:00]}  Nf6 {[%clk 0:02:58]} 2. c4 {[%clk 0:03:01]}  e6 {[%clk 0:02:58]} 3. Nf3 {[%clk 0:03:01]}  d5 {[%clk 0:02:57]} 4. Nc3 {[%clk 0:03:00]}  c5 {[%clk 0:02:57]} 5. cxd5 {[%clk 0:03:00]}  Nxd5 {[%clk 0:02:57]} 6. g3 {[%clk 0:03:00]}  Nc6 {[%clk 0:02:55]} 7. Bg2 {[%clk 0:02:56]}  Be7 {[%clk 0:02:51]} 8. Nxd5 {[%clk 0:02:42]}  Qxd5 {[%clk 0:02:48]} 9. O-O {[%clk 0:02:41]}  cxd4 {[%clk 0:02:47]} 10. Bf4 {[%clk 0:02:29]}  O-O {[%clk 0:02:45]} 11. Ne5 {[%clk 0:02:25]}  Qb5 {[%clk 0:02:36]} 12. Nxc6 {[%clk 0:02:03]}  bxc6 {[%clk 0:02:35]} 13. Qxd4 {[%clk 0:01:46]}  Bf6 {[%clk 0:02:33]} 14. Qd6 {[%clk 0:01:11]}  Bb7 {[%clk 0:02:26]} 15. Rac1 {[%clk 0:00:18]}  Rac8 {[%clk 0:02:23]} 16. b3 {[%clk 0:00:16]}  Rfd8 {[%clk 0:02:22]} 17. Qa3 {[%clk 0:00:15]}  a6 {[%clk 0:02:14]} 18. e4 {[%clk 0:00:15]}  Bd4 {[%clk 0:02:08]} 19. Rc2 {[%clk 0:00:15]}  c5 {[%clk 0:02:06]} 20. Rfc1 {[%clk 0:00:14]}  e5 {[%clk 0:02:03]} 21. Bd2 {[%clk 0:00:13]}  Rd7 {[%clk 0:01:57]} 22. Ba5 {[%clk 0:00:13]}  h5 {[%clk 0:01:52]} 23. Kh1 {[%clk 0:00:14]}  h4 {[%clk 0:01:44]} 24. Rd1 {[%clk 0:00:13]}  h3 {[%clk 0:01:42]} 25. Bxh3 {[%clk 0:00:13]}  Bxe4+ {[%clk 0:01:42]} 26. Kg1 {[%clk 0:00:12]}  Bxc2 {[%clk 0:01:41]} 27. Bxd7 {[%clk 0:00:12]}  Qxd7 {[%clk 0:01:40]} 28. Rd2 {[%clk 0:00:12]}  Be4 {[%clk 0:01:36]} 29. Qc1 {[%clk 0:00:12]}  Qg4 {[%clk 0:01:35]} 30. Qc4 {[%clk 0:00:04]}  Qf3 {[%clk 0:01:32]} 31. Kf1 {[%clk 0:00:05]}  Qh1+ {[%clk 0:01:26]} 32. Ke2 {[%clk 0:00:05]}  Qxh2 {[%clk 0:01:26]} 33. b4 {[%clk 0:00:05]}  Qxf2+ {[%clk 0:01:26]} 34. Kd1 {[%clk 0:00:04]}  Qg1+ {[%clk 0:01:25]} 35. Ke2 {[%clk 0:00:03]}  Bf5 {[%clk 0:01:15]} 36. Qxa6 {[%clk 0:00:02]}  c4 {[%clk 0:01:11]} 0-1

[Event "January 9 Early 2024"]
[Site "https://www.chess.com"]
[Date "2024.01.11"]
[Round "10"]
[White "Yurasov, Matfey"]
[Black "Zhuk, Valeriy"]
[Result "1-0"]
[Board "58"]
[TimeControl "180+1"]
[WhiteFideId "55617603"]
[BlackFideId "24151254"]
[WhiteElo "2537"]
[BlackElo "2412"]
[WhiteTeam "FID"]
[BlackTeam "RUS"]
[WhiteClock "0:01:29"]
[BlackClock "0:00:41"]

1. e4 {[%clk 0:02:59]}  c5 {[%clk 0:02:59]} 2. Nf3 {[%clk 0:02:58]}  e6 {[%clk 0:03:00]} 3. g3 {[%clk 0:02:56]}  d5 {[%clk 0:02:53]} 4. exd5 {[%clk 0:02:55]}  exd5 {[%clk 0:02:53]} 5. Bg2 {[%clk 0:02:54]}  Nc6 {[%clk 0:02:48]} 6. O-O {[%clk 0:02:52]}  Bd6 {[%clk 0:02:39]} 7. d4 {[%clk 0:02:52]}  c4 {[%clk 0:02:34]} 8. b3 {[%clk 0:02:44]}  cxb3 {[%clk 0:02:34]} 9. axb3 {[%clk 0:02:44]}  Nge7 {[%clk 0:02:34]} 10. c4 {[%clk 0:02:43]}  O-O {[%clk 0:02:31]} 11. Re1 {[%clk 0:02:43]}  h6 {[%clk 0:02:27]} 12. Nc3 {[%clk 0:02:42]}  Be6 {[%clk 0:02:24]} 13. c5 {[%clk 0:02:42]}  Bc7 {[%clk 0:02:24]} 14. Nb5 {[%clk 0:02:43]}  Bb8 {[%clk 0:02:19]} 15. Bf4 {[%clk 0:02:41]}  Bxf4 {[%clk 0:02:18]} 16. gxf4 {[%clk 0:02:42]}  Ng6 {[%clk 0:02:16]} 17. Qd2 {[%clk 0:02:39]}  Qf6 {[%clk 0:02:16]} 18. f5 {[%clk 0:02:35]}  Bxf5 {[%clk 0:02:04]} 19. Nd6 {[%clk 0:02:33]}  Bg4 {[%clk 0:02:02]} 20. Ne5 {[%clk 0:02:32]}  Ngxe5 {[%clk 0:01:58]} 21. dxe5 {[%clk 0:02:31]}  Nxe5 {[%clk 0:01:58]} 22. Qxd5 {[%clk 0:02:12]}  Nf3+ {[%clk 0:01:58]} 23. Kh1 {[%clk 0:02:07]}  Nxe1 {[%clk 0:01:56]} 24. Rxe1 {[%clk 0:02:08]}  b6 {[%clk 0:01:48]} 25. c6 {[%clk 0:02:00]}  Rad8 {[%clk 0:01:48]} 26. Ne4 {[%clk 0:01:59]}  Qf4 {[%clk 0:01:37]} 27. Qc4 {[%clk 0:01:52]}  Bf3 {[%clk 0:01:35]} 28. Bxf3 {[%clk 0:01:44]}  Qxf3+ {[%clk 0:01:35]} 29. Kg1 {[%clk 0:01:44]}  Qg4+ {[%clk 0:01:11]} 30. Kh1 {[%clk 0:01:44]}  Rd1 {[%clk 0:01:09]} 31. Nf6+ {[%clk 0:01:42]}  Kh8 {[%clk 0:00:58]} 32. Nxg4 {[%clk 0:01:39]}  Rxe1+ {[%clk 0:00:58]} 33. Kg2 {[%clk 0:01:39]}  Re6 {[%clk 0:00:59]} 34. b4 {[%clk 0:01:32]}  b5 {[%clk 0:00:57]} 35. Qxb5 {[%clk 0:01:29]}  Rc8 {[%clk 0:00:57]} 36. Ne5 {[%clk 0:01:29]}  f6 {[%clk 0:00:51]} 37. Ng6+ {[%clk 0:01:29]}  Kh7 {[%clk 0:00:51]} 38. Qf5 {[%clk 0:01:29]}  Rexc6 {[%clk 0:00:44]} 39. Ne7+ {[%clk 0:01:30]}  Kh8 {[%clk 0:00:41]} 40. Nxc8 {[%clk 0:01:29]} 1-0

[Event "January 9 Early 2024"]
[Site "https://www.chess.com"]
[Date "2024.01.11"]
[Round "10"]
[White "Berezin, Viktor"]
[Black "Haug, Havard"]
[Result "1-0"]
[Board "59"]
[TimeControl "180+1"]
[WhiteFideId "14107872"]
[BlackFideId "1547887"]
[WhiteElo "2552"]
[BlackElo "2781"]
[WhiteTeam "UKR"]
[BlackTeam "NOR"]
[WhiteClock "0:00:53"]
[BlackClock "0:00:23"]

1. d4 {[%clk 0:02:57]}  d5 {[%clk 0:02:58]} 2. c4 {[%clk 0:02:54]}  e6 {[%clk 0:02:58]} 3. Nf3 {[%clk 0:02:53]}  c5 {[%clk 0:02:54]} 4. cxd5 {[%clk 0:02:53]}  exd5 {[%clk 0:02:55]} 5. Nc3 {[%clk 0:02:54]}  Nf6 {[%clk 0:02:54]} 6. g3 {[%clk 0:02:54]}  Nc6 {[%clk 0:02:53]} 7. Bg2 {[%clk 0:02:55]}  Be7 {[%clk 0:02:52]} 8. O-O {[%clk 0:02:55]}  O-O {[%clk 0:02:51]} 9. dxc5 {[%clk 0:02:55]}  Bxc5 {[%clk 0:02:50]} 10. Bg5 {[%clk 0:02:56]}  d4 {[%clk 0:02:50]} 11. Bxf6 {[%clk 0:02:49]}  Qxf6 {[%clk 0:02:51]} 12. Ne4 {[%clk 0:02:49]}  Qe7 {[%clk 0:02:51]} 13. Nxc5 {[%clk 0:02:49]}  Qxc5 {[%clk 0:02:52]} 14. Rc1 {[%clk 0:02:49]}  Qb6 {[%clk 0:02:53]} 15. Qd2 {[%clk 0:02:36]}  h6 {[%clk 0:02:51]} 16. Rfd1 {[%clk 0:02:36]}  Rd8 {[%clk 0:02:50]} 17. b4 {[%clk 0:02:28]}  Be6 {[%clk 0:02:43]} 18. a4 {[%clk 0:02:21]}  Bb3 {[%clk 0:02:38]} 19. b5 {[%clk 0:02:15]}  Na5 {[%clk 0:02:26]} 20. Qb4 {[%clk 0:01:56]}  Bxd1 {[%clk 0:02:24]} 21. Rxd1 {[%clk 0:01:56]}  d3 {[%clk 0:02:22]} 22. exd3 {[%clk 0:01:49]}  Nc6 {[%clk 0:02:21]} 23. Qg4 {[%clk 0:01:42]}  Nd4 {[%clk 0:02:17]} 24. Ne5 {[%clk 0:01:38]}  Qf6 {[%clk 0:02:03]} 25. Re1 {[%clk 0:01:33]}  g6 {[%clk 0:01:18]} 26. Bxb7 {[%clk 0:01:18]}  Rab8 {[%clk 0:01:18]} 27. Nd7 {[%clk 0:01:16]}  Rxd7 {[%clk 0:00:56]} 28. Qxd7 {[%clk 0:01:17]}  Rxb7 {[%clk 0:00:35]} 29. Re8+ {[%clk 0:01:11]}  Kg7 {[%clk 0:00:35]} 30. Qxb7 {[%clk 0:01:11]}  Nf3+ {[%clk 0:00:33]} 31. Kg2 {[%clk 0:01:10]}  Nd4 {[%clk 0:00:24]} 32. Qe4 {[%clk 0:01:05]}  Ne6 {[%clk 0:00:21]} 33. Rxe6 {[%clk 0:00:58]}  fxe6 {[%clk 0:00:22]} 34. Qb7+ {[%clk 0:00:57]}  Kf8 {[%clk 0:00:22]} 35. Qa8+ {[%clk 0:00:56]}  Ke7 {[%clk 0:00:22]} 36. Qxa7+ {[%clk 0:00:56]}  Kf8 {[%clk 0:00:22]} 37. Qa8+ {[%clk 0:00:53]}  Ke7 {[%clk 0:00:23]} 38. Qb7+ {[%clk 0:00:53]}  Kf8 {[%clk 0:00:23]} 39. a5 {[%clk 0:00:53]} 1-0

[Event "January 9 Early 2024"]
[Site "https://www.chess.com"]
[Date "2024.01.11"]
[Round "10"]
[White "Sarkar, Justin"]
[Black "Tymrakiewicz, Rafal"]
[Result "0-1"]
[Board "60"]
[TimeControl "180+1"]
[WhiteFideId "2010011"]
[BlackFideId "1108832"]
[WhiteElo "2288"]
[BlackElo "2397"]
[WhiteTeam "USA"]
[BlackTeam "POL"]
[WhiteClock "0:00:01"]
[BlackClock "0:00:41"]

1. d4 {[%clk 0:02:47]}  Nf6 {[%clk 0:02:58]} 2. c4 {[%clk 0:02:47]}  g6 {[%clk 0:02:58]} 3. Nc3 {[%clk 0:02:47]}  Bg7 {[%clk 0:02:59]} 4. e4 {[%clk 0:02:46]}  O-O {[%clk 0:02:59]} 5. Nf3 {[%clk 0:02:40]}  d6 {[%clk 0:02:59]} 6. Be2 {[%clk 0:02:40]}  e5 {[%clk 0:02:59]} 7. O-O {[%clk 0:02:38]}  Nh5 {[%clk 0:02:59]} 8. Re1 {[%clk 0:02:33]}  Nf4 {[%clk 0:02:48]} 9. Bf1 {[%clk 0:02:26]}  Nc6 {[%clk 0:02:47]} 10. d5 {[%clk 0:02:16]}  Ne7 {[%clk 0:02:47]} 11. g3 {[%clk 0:02:11]}  Nh3+ {[%clk 0:02:41]} 12. Kg2 {[%clk 0:02:02]}  f5 {[%clk 0:02:41]} 13. exf5 {[%clk 0:01:30]}  Nxf5 {[%clk 0:02:38]} 14. Ne4 {[%clk 0:01:21]}  h6 {[%clk 0:02:12]} 15. Be2 {[%clk 0:01:17]}  g5 {[%clk 0:02:03]} 16. g4 {[%clk 0:01:08]}  Nf4+ {[%clk 0:01:33]} 17. Bxf4 {[%clk 0:01:07]}  Nh4+ {[%clk 0:01:08]} 18. Nxh4 {[%clk 0:01:02]}  Rxf4 {[%clk 0:01:08]} 19. Nxd6 {[%clk 0:00:06]}  Qxd6 {[%clk 0:00:54]} 20. Nf5 {[%clk 0:00:05]}  Bxf5 {[%clk 0:00:51]} 21. gxf5 {[%clk 0:00:05]}  e4 {[%clk 0:00:51]} 22. Qc2 {[%clk 0:00:02]}  Bd4 {[%clk 0:00:50]} 23. Rf1 {[%clk 0:00:01]}  Rf8 {[%clk 0:00:45]} 24. Rad1 {[%clk 0:00:01]}  Bc5 {[%clk 0:00:44]} 25. Bh5 {[%clk 0:00:01]}  R8xf5 {[%clk 0:00:41]} 0-1